Cogmind - Beta 9.4 @@@ ROGUE MODE // 2020.02.04 @ 10:59:13 // AFD2018/Launchers Player: sideriver81 Result: Self-destructed Performance ------------- Evolutions (1) 500 Regions Visited (2) 400 Robots Destroyed (17) 85 Value Destroyed (382) 382 Prototype IDs (0) 0 Alien Tech Used (0) 0 Bonus (0) 0 TOTAL SCORE: 1367 Bonus ------- None Cogmind --------- Core Integrity 240/400 Matter 117/300 Energy 99/100 System Corruption 0% Temperature Cool (9) Movement Core (50) Location -9/Materials Parts ------- > --- POWER (1) -------- (None) > --- PROPULSION (3) --- (None) > --- UTILITY (3) ------ Visual Processing Unit > --- WEAPON (2) ------- Mini Grenade Launcher > --- INVENTORY (4) ---- High-capacity Storage Unit EMP Blaster EMP Blaster Rocket Launcher Peak State ------------ > --- POWER ------------ Light Nuclear Core > --- PROPULSION ------- Aluminum Leg > --- UTILITY ---------- Visual Processing Unit > --- WEAPON ----------- Rocket Launcher > --- INVENTORY -------- High-capacity Storage Unit EMP Blaster Rocket Launcher Rocket Launcher [Rating: 8] Favorites ----------- Power Light Nuclear Core Engine Light Ion Engine Power Core Light Nuclear Core Propulsion Aluminum Leg Leg Aluminum Leg Wheel Wheel Utility Visual Processing Unit Processor Visual Processing Unit Weapon Rocket Launcher Launcher Rocket Launcher Build | -11 -10 -9 ------- Run | Scr Mat Mat Slots Evolved 2 | . . 2 Power . | . . . Propulsion 1 | . . 1 Utility 1 | . . 1 Weapon . | . . . Parts Attached 8 | . 3 5 Power 2 | . 1 1 Engine 1 | . . 1 Core 1 | . 1 . Reactor . | . . . Propulsion 2 | . 1 1 Treads . | . . . Leg 1 | . 1 . Wheel 1 | . . 1 Hover . | . . . Flight . | . . . Utility 1 | . 1 . Device . | . . . Storage . | . . . Processor 1 | . 1 . Hackware . | . . . Protection . | . . . Artifact . | . . . Weapon 3 | . . 3 Energy Gun . | . . . Energy Cannon . | . . . Ballistic Gun . | . . . Ballistic Cannon . | . . . Launcher 3 | . . 3 Special Weapon . | . . . Impact Weapon . | . . . Slashing Weapon . | . . . Piercing Weapon . | . . . Special Melee Weapon . | . . . Unidentified Prototypes . | . . . Parts Lost 6 | . . 6 Power 2 | . . 2 Propulsion 2 | . . 2 Utility . | . . . Weapon 2 | . . 2 Highest Loss Streak 3 | . . 3 Average Slot Usage (%) 45 | . 49 44 Engine 2 | . . 4 Core 7 | . 11 6 Leg 7 | . 11 6 Wheel 2 | . . 3 Processor 11 | . 12 11 Launcher 13 | . 14 12 Naked Turns . | . . . Heaviest Build 9 | 3 8 9 Greatest Support 10 | 3 10 10 Greatest Overweight (x) 2 | . . 2 Average Overweight (x) . | . . . Largest Inventory Capacity 4 | 4 4 4 Average Capacity 4 | 4 4 4 Most Carried 4 | 4 4 4 Average Carried 3 | 4 3 3 Final Capacity 4 | 4 4 4 Final Carried 4 | 4 4 4 Class Distribution -------------------- 100% | Mutant Dominant Class ---------------- Mutant | -10/Materials Mutant | -9/Materials Resources | -11 -10 -9 ----------- Run | Scr Mat Mat Matter Collected 202 | . 99 103 Remotely . | . . . Salvage Created 276 | . 99 177 Parts 19 | . 4 15 Haulers Intercepted 1 | . . 1 Recyclers Shooed . | . . . Parts Field Recycled . | . . . Retrieved Matter . | . . . Parts Self-Destructed . | . . . Prevented . | . . . Kills | -11 -10 -9 ------- Run | Scr Mat Mat Combat Hostiles Destroyed 10 | . 2 8 AOE 10 | . 2 8 Classes Destroyed 8 | . 2 6 Worker 1 | . . 1 Builder 1 | . . 1 Hauler 1 | . . 1 Recycler 1 | . . 1 Watcher 3 | . 1 2 Swarmer 4 | . . 4 Grunt 3 | . 2 1 Sentry 3 | . . 3 Best Kill Streak 6 | . 3 6 Combat Bots Only 4 | . 2 4 Max Kills in Single Turn 3 | . 3 3 Gunslinging . | . . . Exploded 3 | . 2 3 Melee . | . . . Uniques/NPCs Destroyed . | . . . Combat | -11 -10 -9 -------- Run | Scr Mat Mat Damage Taken 496 | . . 496 Core 160 | . . 160 Absorbed by Shields . | . . . Core Remaining (%) 100 | 100 100 . Volleys Fired 22 | . 1 21 Largest 2 | . 1 2 Hottest 63 | . 30 63 Shots Fired 25 | . 1 24 Gun . | . . . Cannon . | . . . Launcher 25 | . 1 24 Special . | . . . Kinetic . | . . . Thermal . | . . . Explosive 25 | . 1 24 Electromagnetic . | . . . Robot Hit Streak 3 | . 1 3 Robot Miss Streak 2 | . . 2 Penetration Max . | . . . Secondary Targets . | . . . Shots Hit Robots 7 | . 1 6 Core Hits 29 | . 4 25 Critical Hits . | . . . Critical Kills . | . . . Critical Parts Destroyed . | . . . Melee Attacks . | . . . Impact . | . . . Slashing . | . . . Piercing . | . . . Sneak Attacks . | . . . Combat Hostiles . | . . . Follow-up Attacks . | . . . Damage Inflicted 1076 | . 80 996 Guns . | . . . Cannons . | . . . Explosions 1076 | . 80 996 Melee . | . . . Ramming . | . . . Kinetic . | . . . Thermal . | . . . Explosive 1076 | . 80 996 Electromagnetic . | . . . Impact . | . . . Slashing . | . . . Piercing . | . . . Highest Corruption . | . . . Average Corruption . | . . . Corruption Purged . | . . . Overload Shots . | . . . Overflow Damage 3 | . . 3 Projectiles . | . . . Explosions 3 | . . 3 Melee . | . . . Knockbacks . | . . . Impact . | . . . Kinetic . | . . . Secondary . | . . . Self-Inflicted Damage 42 | . . 42 Shots 3 | . . 3 Rammed . | . . . Targets Rammed . | . . . Kicked . | . . . Crushed . | . . . Highest Temperature 10 | . . 10 Average Temperature 5 | . . 5 Received Heat Transfer 126 | . . 126 Siege Activations . | . . . Robots Corrupted . | . . . Combat Hostiles . | . . . Parts Fried . | . . . Impact Corruptions . | . . . Robots Melted . | . . . Combat Hostiles . | . . . Parts Melted . | . . . Heat Transferred . | . . . Parts Sabotaged . | . . . Parts Stolen . | . . . Parts Stripped . | . . . Power Chain Reactions . | . . . Missiles Intercepted . | . . . Alert | -11 -10 -9 ------- Run | Scr Mat Mat Peak Influence 342 | . 77 342 Average Influence 135 | . 62 164 Maximum Alert Level 1 | . . 1 Low Security (%) 59 | 100 100 43 Level 1 40 | . . 56 Level 2 . | . . . Level 3 . | . . . Level 4 . | . . . Level 5 . | . . . High Security . | . . . Max Security . | . . . Squads Dispatched 1 | . . 1 Investigation . | . . . Extermination . | . . . Reinforcement 1 | . . 1 Assault . | . . . Garrison . | . . . Intercept . | . . . Construction Impeded 1 | . . 1 Haulers Reinforced . | . . . Stealth | -11 -10 -9 --------- Run | Scr Mat Mat Distress Signals 2 | . 1 1 Communications Jammed . | . . . Distress Signals . | . . . Times Spotted 19 | . 5 14 Peak Tracking Total 7 | . 4 7 Tactical Retreats . | . . . Traps | -11 -10 -9 ------- Run | Scr Mat Mat Traps Triggered . | . . . Indirectly . | . . . Trap Hack Attempts . | . . . Triggered . | . . . Disarmed . | . . . Reprogrammed . | . . . Reused . | . . . Traps Extracted . | . . . Installed . | . . . Triggered . | . . . Machines | -11 -10 -9 ---------- Run | Scr Mat Mat Machines Disabled 3 | . . 3 Max in Single Turn 2 | . . 2 Machines Sabotaged . | . . . Garrisons Compromised . | . . . Overloaded Fab Kills . | . . . Fab Network Shutdowns . | . . . Hacking | -11 -10 -9 --------- Run | Scr Mat Mat Machines Accessed 4 | . 2 2 Terminals 3 | . 2 1 Fabricators . | . . . Repair Stations . | . . . Recycling Units 1 | . . 1 Scanalyzers . | . . . Garrison Access . | . . . Total Hacks 13 | . 4 9 Successful 8 | . 1 7 Failed 5 | . 3 2 Catastrophic . | . . . Database Lockouts . | . . . Manual 7 | . 3 4 Terminals 8 | . 4 4 Fabricators . | . . . Repair Stations . | . . . Recycling Units 5 | . . 5 Scanalyzers . | . . . Garrison Access . | . . . Terminal Hacks 2 | . 1 1 Locate Traps 2 | . 1 1 Fabricator Hacks . | . . . Repair Station Hacks . | . . . Recycling Unit Hacks 5 | . . 5 Process 2 | . . 2 Report Inventory 1 | . . 1 Retrieve Matter 2 | . . 2 Scanalyzer . | . . . Garrison Access Hacks . | . . . Unauthorized Hacks 5 | . 1 4 Terminals 1 | . . 1 Botnet 1 | . . 1 Fabricators . | . . . Repair Stations . | . . . Recycling Units . | . . . Scanalyzers . | . . . Garrison Access . | . . . Data Cores Recovered . | . . . Used . | . . . Hacking Detections 3 | . 1 2 Full Trace Events . | . . . Feedback Events . | . . . Feedback Blocked . | . . . Robot Schematics Acquired . | . . . Robots Built . | . . . Matter . | . . . Time . | . . . Total Robot Build Rating . | . . . Part Schematics Acquired . | . . . Parts Built . | . . . Matter . | . . . Time . | . . . Total Part Build Rating . | . . . Parts Repaired . | . . . Time . | . . . Parts Recycled . | . . . Recycled Matter 130 | . . 130 Retrieved Matter 130 | . . 130 Retrieved Components . | . . . Parts Scanalyzed . | . . . Part Schematics Acquired . | . . . Parts Damaged . | . . . Bothacking | -11 -10 -9 ------------ Run | Scr Mat Mat Used RIF Installer . | . . . Robots Hacked . | . . . Non-combat . | . . . Combat . | . . . Robot Hacks Applied . | . . . Relay Couplers Released . | . . . Robots Rewired . | . . . Allies Hacked . | . . . Hacks Repelled . | . . . Allies | -11 -10 -9 -------- Run | Scr Mat Mat Total Allies . | . . . Largest Group . | . . . Highest-Rated Group . | . . . Highest-Rated Ally . | . . . Total Orders . | . . . Ally Attacks . | . . . Total Damage . | . . . Kills . | . . . Allies Corrupted . | . . . Allies Melted . | . . . Intel | -11 -10 -9 ------- Run | Scr Mat Mat Robot Analysis Total . | . . . Derelict Logs Recovered . | . . . Drone Launches . | . . . Drone Recoveries . | . . . Exploration | -11 -10 -9 ------------- Run | Scr Mat Mat Turns Passed 374 | 1 104 269 Spaces Moved 297 | 1 97 199 Core 50 | 1 28 21 Treads . | . . . Legs 181 | . 69 112 Wheels 66 | . . 66 Hover . | . . . Flight . | . . . Fastest Speed 50 | 50 50 50 Average Speed 103 | 50 99 105 Slowest Speed 150 | 50 120 150 Overloaded Moves . | . . . Propulsion Burnouts . | . . . Robots Hopped . | . . . Cave-ins Triggered . | . . . Exploration Rate (%) 17 | 1 33 19 Regions Visited 2 Branch Regions . Pre-discovered Areas . | . . . Known Exits Taken . | . . . Unknown Exits Taken 2 | 1 1 . Scrap Searched . | . . . Spaces Dug . | . . . Terrain Destroyed 162 | . . 162 Melee . | . . . Projectile . | . . . AOE 162 | . . 162 Actions | -11 -10 -9 --------- Run | Scr Mat Mat Total 337 | 1 102 234 Wait . | . . . Move 295 | . 96 199 Hop . | . . . Pick Up 6 | . 1 5 Fast Attach 6 | . 3 3 Attach 2 | . . 2 Detach . | . . . Swap . | . . . Drop 6 | 1 1 4 Fire 22 | . 1 21 Melee . | . . . Ram . | . . . Kick . | . . . Crush . | . . . Escape Stasis . | . . . Rewire . | . . . Trap . | . . . Miscellaneous . | . . . Route ------- -11/Scrapyard -10/Materials -9/Materials History --------- Turn | Location | Event 2 | -11/Scrapyard | Discovered new exit (range 0) 2 | -11/Scrapyard | Entered Materials 55 | -10/Materials | Discovered new exit (range 5) 106 | -10/Materials | Entered another Materials area 106 | -9/Materials | Evolved 2 slots: Propulsion x1, Utility x1 300 | -9/Materials | Lost 3 parts (1p1n1w) 332 | -9/Materials | Build established: Mutant 375 | -9/Materials | Self-destructed Last Messages --------------- 00320_ Acquired EMP Blaster. 00341_ K-01 Serf cleans the Terminal. 00351_ The unstable cave ceiling collapses. 00356_ Destroyed Heat Sink. 00356_ Rocket Launcher destroyed. 00360_ C-30 ARC bursts open, deploying its payload. 00360_ L-31 Rogue unfolds itself. 00360_ G-34 Mercenary unfolds itself. 00362_ The unstable cave ceiling collapses. 00365_ Y-45 Defender destroyed. 00367_ The unstable cave ceiling collapses. 00369_ G-34 Mercenary destroyed. 00369_ K-01 Serf destroyed. 00369_ Matter Filter disabled. 00370_ U-05 Engineer lays Concrete. 00372_ Wheel destroyed. 00372_ Lgt. Ion Engine destroyed. 00374_ U-05 Engineer lays Concrete. 00374_ Acquired 16 matter. 00375_ U-05 Engineer lays Concrete. Map ----- +----------------------------------------------------+ | # #??#### # ## ####????????????????????? | | # #??# # ## # #????????????????????? | | # #### # # ###################+##### #? | | # #? | | # #? | | / ] #? | | # ################# ##### #? | | # # #????????????????? | | ###### ## """ #????????????????? | | ?# # """ #????????????????? | | ?# "Y" + """ #????????????????? | | ?# """ # #????????????????? | | #####+######+######### # """ #????????????????? | | # # # # """ #????????????????? | | # """# # # """??????????????????? | | # """# # # ???????????????????? | | # """# #+###########???????????????? | | # # # ????????????????? | | # "T" # # ]] ????????????????? | | #################+#### ][ ?????????????????? | | ??????# ?# #?## ] ""T"?????????????????? | | ??????# ?# ### """??????????????????? | | ??????? # # #Y ########## ???????? | | ????????""" """ # ??????? | | ????????""" """ + u Y ??????? | | ????????""" """ # u l @ % ??????? | | ??????? ### * +##########???????????? | | ??????# ] ?# #?????????????????? | | ??????########## # """" #?????????????????? | | ??????????????# """"" #?????????????????? | | ??????????????# # ] """"" #?????????????????? | | ??????????????# """"" #?????????????????? | | ??????????????# """"" #?????????????????? | | ??????????? # """""???????????????????? | | ???????# """"????????????????????? | | ???????# ### ????????????????????? | | ???????## ???# # #######?????????????????????? | | ????????# ????# #???????????????????????????? | | ????????#?????#### #???????????????????????????? | | ?????????????????#####???????????????????????????? | | ?????????????????????????????????????????????????? | | ?????????????????????????????????????????????????? | | ?????????????????????????????????????????????????? | | ?????????????????????????????????????????????????? | | ?????????????????????????????????????????????????? | | ?????????????????????????????????????????????????? | | ?????????????????????????????????????????????????? | | ?????????????????????????????????????????????????? | | ?????????????????????????????????????????????????? | | ?????????????????????????????????????????????????? | +----------------------------------------------------+ Best States ------------- Heat Dissipation 28 Energy Generation 14 Energy Capacity 160 Matter Stores 209 Matter Capacity 300 Sight Range 18 Terrain Scan Density 10 Evasion (%) 50 Item Schematics ----------------- None Robot Schematics ------------------ None Fabricated ------------ Nothing Alien Tech Used ----------------- None Achievements -------------- None Challenges ------------ None Game ------ Seed LightpackAssembledNanosword Manual? 0 Play Time 00:07:59 Cumulative 297.8 hours Start 2020.02.04 @ 10:54:19 End 2020.02.04 @ 10:59:13 Sessions 1 Manual Loads 0 Difficulty Rogue Special Mode AFD2018/Launchers Game No. 119 Rogue 41 Adventurer 48 Explorer 30 Win Type - Total 46 Types 30/5/4/2/2/1/2 Lore% 98 Gallery% 100 Achievement% 88 Wizard Run 0 Options --------- ASCII 0 Keyboard 0 Movement Numpad Keybinds 1 Fullscreen 0 Font 18/Terminus Map View 76x50 Tactical HUD 1 Map Filters NONE Filters NONE Steam 1 RUN: d67b077b-d356-42eb-9bc8-9f9189125a00